bitfinex/quotes_BTCUSD_20250330
["timestamp","ask_amount","ask_price","bid_price","bid_amount"]
[1743330787311,0.5003372,83310.0,83309.0,0.52174472]
[1743330787471,0.7404042,83310.0,83309.0,0.52274472]
[1743330787671,0.7524072,83310.0,83309.0,0.52274472]
[1743330790643,1.0524072,83310.0,83309.0,0.32896387]
[1743330790844,1.0524072,83310.0,83309.0,0.46308387]
[1743330791044,1.0524072,83310.0,83309.0,0.32896387]
[1743330792709,1.0524072,83310.0,83309.0,0.32796387]
[1743330793121,1.0524072,83310.0,83309.0,0.0077306]
[1743330793524,1.0524072,83310.0,83309.0,0.00030903]
[1743330794553,1.1312072,83310.0,83309.0,0.00030903]
[1743330806979,1.1332072,83310.0,83309.0,0.00030903]
[1743330807454,1.1362072,83310.0,83309.0,0.00030903]
[1743330807832,1.0574072,83310.0,83309.0,0.00030903]
[1743330808496,0.7574072,83310.0,83309.0,0.00030903]
[1743330809090,1.0574072,83310.0,83309.0,0.00030903]
[1743330809318,1.0554072,83310.0,83309.0,0.00030903]
[1743330810378,1.0524072,83310.0,83309.0,0.00030903]
[1743330810491,1.0534072,83310.0,83309.0,0.00030903]
[1743330810921,1.0534072,83310.0,83309.0,0.07860903]
[1743330813367,1.0534072,83310.0,83309.0,0.00030903]
[1743330815129,0.8013372,83310.0,83309.0,0.00030903]
[1743330815336,0.8013372,83310.0,83309.0,0.07107145]
[1743330815730,0.8013372,83310.0,83309.0,0.08307445]
[1743330815957,0.5013372,83310.0,83309.0,0.48160772]
[1743330816378,0.5013372,83310.0,83309.0,0.60189255]
[1743330816620,0.5003372,83310.0,83309.0,0.48260772]
[1743330817582,0.0003372,83310.0,83309.0,0.48260772]
[1743330818192,0.0003372,83310.0,83309.0,0.48160772]
[1743330818591,0.0003372,83310.0,83309.0,0.48260772]
[1743330825201,0.0123402,83310.0,83309.0,0.47060472]
[1743330825406,0.2524072,83310.0,83309.0,0.32896387]
[1743330825618,0.2524072,83310.0,83309.0,0.46272387]
[1743330825823,0.5524072,83310.0,83309.0,0.32896387]
[1743330826042,1.0524072,83310.0,83309.0,0.32896387]
[1743330826467,1.0524072,83310.0,83309.0,0.0087306]
[1743330826676,1.07469219,83310.0,83309.0,0.0087306]
[1743330826878,1.07469219,83310.0,83309.0,0.00130903]
[1743330827454,1.12279219,83310.0,83309.0,0.00130903]
[1743330827911,1.13393399,83310.0,83309.0,0.00130903]
[1743330828319,1.13393399,83310.0,83309.0,0.00030903]
[1743330828693,1.13393399,83310.0,83309.0,0.00130903]
[1743330828887,1.13393399,83310.0,83309.0,0.00030903]
[1743330829495,1.08583399,83310.0,83309.0,0.00030903]
[1743330833850,0.552094,83302.0,83301.0,0.002]
[1743330834056,0.552094,83302.0,83301.0,0.00204712]
[1743330834900,0.57437899,83302.0,83301.0,0.00204712]
[1743330835527,0.57437899,83302.0,83301.0,0.00404712]
[1743330835712,1.07437899,83302.0,83301.0,0.00404712]
[1743330836112,1.08552079,83302.0,83301.0,0.00404712]
[1743330842248,1.08552079,83302.0,83301.0,0.00204712]
[1743330842587,1.08552079,83302.0,83301.0,0.00321572]
[1743330843297,1.12115781,83302.0,83301.0,0.00321572]
[1743330849173,1.12115781,83302.0,83301.0,0.01069383]
[1743330857302,0.240096,83300.0,83299.0,0.32023327]
[1743330857927,0.53765126,83300.0,83299.0,0.32023327]
[1743330858633,0.59567184,83300.0,83299.0,0.32223327]
[1743330858792,1.09567184,83300.0,83299.0,0.32223327]
[1743330859336,1.10681364,83300.0,83299.0,0.32223327]
[1743330860529,1.10681364,83300.0,83299.0,0.002]
[1743330864269,1.10681364,83300.0,83299.0,0.00102813]
[1743330866510,1.10681364,83300.0,83299.0,0.3212614]
[1743330867108,0.86916238,83300.0,83299.0,0.5733634]
[1743330867302,0.86916238,83300.0,83299.0,0.3212614]
[1743330867499,0.86916238,83300.0,83299.0,0.32143]
[1743330867705,0.56949958,83300.0,83299.0,0.573532]
[1743330868544,0.56949958,83300.0,83299.0,0.58807285]
[1743330868672,0.53376399,83300.0,83299.0,0.66957285]
[1743330871045,0.03376399,83300.0,83299.0,0.66957285]
[1743330872661,0.03376399,83300.0,83299.0,0.78985768]
[1743330874484,0.03376399,83300.0,83299.0,0.78882955]
[1743330874818,0.03376399,83300.0,83299.0,0.79282955]
[1743330875812,0.03376399,83300.0,83299.0,0.79582955]
[1743330882345,0.03376399,83300.0,83299.0,0.59404472]
[1743330882541,0.03376399,83300.0,83299.0,0.72864472]
[1743330883979,0.03376399,83300.0,83299.0,0.47654272]
[1743330884954,0.04576799,83300.0,83299.0,0.46200187]
[1743330885362,0.54576799,83300.0,83299.0,0.46200187]
[1743330885949,0.53376399,83300.0,83299.0,0.46200187]
[1743330887060,0.53376399,83300.0,83299.0,0.34194272]
[1743330887452,0.53376399,83300.0,83299.0,0.48846672]
[1743330888097,0.53376399,83300.0,83299.0,0.56556672]
[1743330893400,0.53376399,83300.0,83299.0,0.68585155]
[1743330894275,0.03376399,83300.0,83299.0,0.68585155]
[1743330894473,0.03376399,83300.0,83299.0,0.80613638]
[1743330895451,0.03376399,83300.0,83299.0,0.68585155]
[1743330896502,0.03376399,83300.0,83299.0,0.73115155]
[1743330898849,0.03376399,83300.0,83299.0,0.72815155]
[1743330899219,0.03376399,83300.0,83299.0,0.72415155]
[1743330899431,0.03476399,83300.0,83299.0,0.72815155]
[1743330899640,0.02172765,83300.0,83299.0,0.85343638]
[1743330900255,0.02172765,83300.0,83299.0,0.85743638]
[1743330900638,0.02072765,83300.0,83299.0,0.84415638]
[1743330901182,0.02272765,83300.0,83299.0,0.85215638]
[1743330901708,0.0003372,83309.0,83299.0,0.85215638]
[1743330901709,0.0003372,83309.0,83308.0,0.012003]
[1743330901838,0.0003372,83309.0,83308.0,0.11737986]
[1743330902024,0.0003372,83309.0,83308.0,0.35745186]
[1743330903244,0.0003372,83309.0,83308.0,0.36145186]
[1743330903657,0.0013372,83309.0,83308.0,0.36645186]
[1743330904256,0.0013372,83309.0,83308.0,0.52523216]
[1743330904639,0.0013372,83309.0,83308.0,0.39091216]
[1743330904842,0.0133402,83309.0,83308.0,0.18228115]
[1743330905258,0.5133402,83309.0,83308.0,0.1677403]
[1743330907403,0.5133402,83309.0,83308.0,0.46524592]
[1743330910252,0.5013372,83309.0,83308.0,0.47978677]
[1743330910450,0.5013372,83309.0,83308.0,0.56232336]
[1743330910672,0.5013372,83309.0,83308.0,0.55032036]
[1743330912093,0.5013372,83309.0,83308.0,0.79039236]
[1743330912260,0.5013372,83309.0,83308.0,0.71985877]
[1743330912742,0.5013372,83309.0,83308.0,0.73186177]
[1743330912916,0.5013372,83309.0,83308.0,0.47978677]
[1743330913226,0.5133402,83309.0,83308.0,0.47978677]
[1743330913391,0.5133402,83309.0,83308.0,0.46524592]
[1743330913598,0.5959402,83309.0,83308.0,0.46524592]
[1743330918528,0.5133402,83309.0,83308.0,0.46524592]
[1743330920449,0.5013372,83309.0,83308.0,0.46524592]
[1743330920654,0.5133402,83309.0,83308.0,0.46524592]
[1743330923295,0.5133402,83309.0,83308.0,0.33096592]
[1743330923493,0.5133402,83309.0,83308.0,0.46520592]
[1743330924860,0.8133402,83309.0,83308.0,0.46520592]
[1743330925195,0.8133402,83309.0,83308.0,0.46516592]
[1743330931457,0.8133402,83309.0,83308.0,0.48011659]
[1743330933493,0.83568478,83309.0,83308.0,0.34591659]
[1743330933665,0.83568478,83309.0,83308.0,0.47999659]
[1743330934713,0.8133402,83309.0,83308.0,0.47999659]
[1743330935212,0.58632168,83309.0,83308.0,0.47999659]
[1743330935555,0.59750213,83309.0,83308.0,0.47999659]
[1743330937031,0.61986142,83309.0,83308.0,0.47999659]
[1743330938031,0.61986142,83309.0,83308.0,0.34591659]
[1743330938208,0.61986142,83309.0,83308.0,0.47991659]
[1743330938410,0.71062662,83309.0,83308.0,0.34591659]
[1743330939064,0.71062662,83309.0,83308.0,0.34191659]
[1743330939619,0.71062662,83309.0,83308.0,0.04441097]
[1743330939819,0.71062662,83309.0,83308.0,0.01995067]
[1743330940032,0.552091,83303.0,83302.0,0.57164]
[1743330940248,0.552097,83301.0,83300.0,0.0001686]
[1743330940499,0.634997,83301.0,83300.0,0.0001686]
[1743330940697,0.681597,83301.0,83300.0,0.0001686]
[1743330941482,0.681597,83301.0,83300.0,0.0041686]
[1743330941886,0.394904,83300.0,83299.0,2e-07]
[1743330942265,0.012007,83282.0,83281.0,0.29750562]
[1743330942490,0.012007,83282.0,83281.0,0.3152928]
[1743330942837,0.312007,83282.0,83281.0,0.3152928]
[1743330943239,0.34104741,83282.0,83281.0,0.3152928]
[1743330943649,0.70912934,83282.0,83281.0,0.3152928]
[1743330943851,0.71012934,83282.0,83281.0,0.3202928]
[1743330943980,0.71012934,83282.0,83281.0,0.30255262]
[1743330944436,0.71012934,83282.0,83281.0,0.30555262]
[1743330944791,0.71012934,83282.0,83281.0,0.3232928]
[1743330944992,0.67443662,83282.0,83281.0,0.3232928]
[1743330945147,0.67343662,83282.0,83281.0,0.3182928]
[1743330945354,0.67343662,83282.0,83281.0,0.3232928]
[1743330945547,0.68251101,83282.0,83281.0,0.3232928]
[1743330947209,0.66465105,83282.0,83281.0,0.3232928]
[1743330947530,0.67716334,83282.0,83281.0,0.3232928]
[1743330947732,0.66808895,83282.0,83281.0,0.3232928]
[1743330951717,0.68589905,83282.0,83281.0,0.3232928]
[1743330952362,0.68589905,83282.0,83281.0,0.3234614]
[1743330956118,0.80899905,83282.0,83281.0,0.02595578]
[1743330956314,0.629297,83268.0,83267.0,0.19950631]
[1743330956937,0.903607,83268.0,83267.0,0.19950631]
[1743330957795,0.903607,83268.0,83267.0,0.20250631]
[1743330958001,0.903607,83268.0,83267.0,0.19950631]
[1743330958227,0.97673474,83268.0,83267.0,0.19950631]
[1743330958435,0.97673474,83268.0,83252.0,0.0001686]
[1743330958436,0.552212,83263.0,83253.0,0.19950631]
[1743330958639,0.552212,83263.0,83252.0,0.0001686]
[1743330959797,0.62533974,83263.0,83252.0,0.0001686]
[1743330960194,0.94717715,83263.0,83252.0,0.0001686]
[1743330961646,0.93616514,83263.0,83252.0,0.0001686]
[1743330962809,0.93616514,83263.0,83253.0,0.01454085]
[1743330963131,0.93616514,83263.0,83255.0,0.0467]
[1743330963343,0.92864029,83263.0,83255.0,0.0467]
[1743330963992,0.92864029,83263.0,83261.0,0.02395407]
[1743330964207,0.92864029,83263.0,83255.0,0.0467]
[1743330964826,0.92864029,83263.0,83260.0,0.02461625]
[1743330965266,0.92864029,83263.0,83260.0,0.59657625]
[1743330965672,0.92864029,83263.0,83262.0,0.01934432]
[1743330965898,0.92864029,83263.0,83262.0,0.0001686]
[1743330966075,0.92864029,83263.0,83262.0,0.01934432]
[1743330966283,0.91359176,83263.0,83262.0,0.0001686]
[1743330966485,0.91359176,83263.0,83262.0,0.01934432]
[1743330966689,0.91359176,83263.0,83262.0,0.0001686]
[1743330966886,0.91359176,83263.0,83262.0,0.01934432]
[1743330967088,0.91359176,83263.0,83262.0,0.0001686]
[1743330967503,0.91359176,83263.0,83262.0,0.01934432]
[1743330969507,0.92864065,83263.0,83262.0,0.01934432]
[1743330970461,0.01201,83261.0,83260.0,0.47902457]
[1743330971085,0.01201,83261.0,83260.0,0.49501405]
[1743330971304,0.04100055,83261.0,83260.0,0.49501405]
[1743330971762,0.61531055,83261.0,83260.0,0.49501405]
[1743330971986,0.61531055,83261.0,83260.0,0.49601405]
[1743330972204,0.68843865,83261.0,83260.0,0.49601405]
[1743330973044,0.69730356,83261.0,83260.0,0.49601405]
[1743330973471,0.69830356,83261.0,83260.0,0.49601405]
[1743330973635,0.69830356,83261.0,83260.0,0.49501405]
[1743330974274,0.69830356,83261.0,83260.0,0.46792428]
[1743330974717,0.69722264,83261.0,83260.0,0.46792428]
[1743330975656,0.69722264,83261.0,83260.0,0.46809298]
[1743330979631,0.69722264,83261.0,83260.0,0.01615818]
[1743330980008,0.69722264,83261.0,83260.0,0.0001687]
[1743330980904,0.93743064,83261.0,83260.0,0.0001687]
[1743330983497,0.92238175,83261.0,83260.0,0.0001687]
[1743330985297,0.552242,83253.0,83252.0,0.0001686]
[1743330985645,0.552242,83253.0,83252.0,0.01619689]
[1743330986520,0.552242,83253.0,83252.0,0.01666872]
[1743330987007,0.826552,83253.0,83252.0,0.01766872]
[1743330987317,0.85554255,83253.0,83252.0,0.00264043]
[1743330987542,0.91362176,83253.0,83252.0,0.00264043]
[1743330987948,0.91362176,83253.0,83252.0,0.00164043]
[1743330988166,0.91362176,83253.0,83252.0,0.00064043]
[1743330988454,0.91362176,83253.0,83252.0,0.00164043]
[1743330988666,0.66137976,83253.0,83252.0,0.01618128]
[1743330988869,0.66137976,83253.0,83252.0,0.06478128]
[1743330989076,0.66137976,83253.0,83252.0,0.08180957]
[1743330989273,0.67339076,83253.0,83252.0,0.08180957]
[1743330989515,0.67339076,83253.0,83252.0,0.24688957]
[1743330989634,0.66137976,83253.0,83252.0,0.23086128]
[1743330989833,0.66137976,83253.0,83252.0,0.24688957]
[1743330990230,0.64356966,83253.0,83252.0,0.24688957]
[1743330990433,0.34356966,83253.0,83252.0,0.24688957]
[1743330990836,0.34356966,83253.0,83252.0,0.25890057]
[1743330991681,0.30784974,83253.0,83252.0,0.25890057]
[1743330992652,0.30784974,83253.0,83252.0,0.45840688]
[1743330993969,0.30784974,83253.0,83252.0,0.44639588]
[1743330994177,0.31986074,83253.0,83252.0,0.28131588]
[1743330994374,0.31986074,83253.0,83252.0,0.39663588]
[1743330996429,0.31986074,83253.0,83252.0,0.38209503]
[1743330998926,0.30784974,83253.0,83252.0,0.39663588]
[1743330999131,0.30784974,83253.0,83252.0,0.55096366]
[1743330999337,0.30784974,83253.0,83252.0,0.66003171]
[1743330999990,0.30784974,83253.0,83252.0,0.65903171]
[1743331000198,0.03353974,83253.0,83252.0,0.65783171]
[1743331000616,0.03353974,83253.0,83252.0,0.66183171]
[1743331001030,0.03353974,83253.0,83252.0,0.66083171]
[1743331001456,0.03353974,83253.0,83252.0,0.66183171]
[1743331001668,0.03453974,83253.0,83252.0,0.66183171]
[1743331002325,0.01218045,83253.0,83252.0,0.66183171]
[1743331003247,0.001,83253.0,83252.0,0.66183171]
[1743331017243,0.001,83253.0,83252.0,0.65835171]
[1743331018003,0.001,83253.0,83252.0,1.23031171]
[1743331022729,0.001,83253.0,83252.0,1.31968816]
[1743331023133,0.001,83253.0,83252.0,1.32468816]
[1743331023862,0.001,83253.0,83252.0,1.33686049]
[1743331025472,0.001,83253.0,83252.0,1.24748404]
[1743331027778,0.0003374,83267.0,83266.0,0.012009]
[1743331027978,0.0003374,83267.0,83264.0,0.01454085]
[1743331027979,0.012009,83266.0,83264.0,0.01454085]
[1743331028181,0.0003374,83267.0,83266.0,0.01596037]
[1743331028389,0.0808374,83267.0,83265.0,0.17316522]
[1743331028586,0.0808374,83267.0,83266.0,0.03050122]
[1743331029027,0.0808374,83267.0,83266.0,0.03150122]
[1743331029635,0.0928464,83267.0,83266.0,0.03150122]
[1743331030410,0.0928464,83267.0,83266.0,0.05598242]
[1743331032009,0.0928464,83267.0,83266.0,0.21266242]
[1743331032978,0.0928464,83267.0,83266.0,0.19812157]
[1743331033591,0.0928464,83267.0,83266.0,0.39595308]
[1743331037313,0.0928464,83267.0,83266.0,0.96787308]
[1743331037495,0.10401909,83267.0,83266.0,0.96787308]
[1743331042067,0.10401909,83267.0,83266.0,0.81119308]
[1743331042277,0.10401909,83267.0,83266.0,0.96575308]
[1743331045515,0.02351909,83267.0,83266.0,0.96575308]
[1743331045884,0.02351909,83267.0,83266.0,0.96511308]
[1743331049467,0.01151009,83267.0,83266.0,0.97965393]
[1743331049671,0.01151009,83267.0,83266.0,1.24234776]
[1743331049888,0.012005,83297.0,83282.0,0.252152]
[1743331049889,0.012006,83288.0,83282.0,0.252152]
[1743331050067,0.3,83289.0,83284.0,0.01454085]
[1743331050266,0.3,83289.0,83285.0,0.10037418]
[1743331050267,0.252137,83288.0,83285.0,0.10037418]
[1743331050501,0.2404734,83286.0,83285.0,0.11624239]
[1743331050694,0.2524794,83286.0,83285.0,0.03040906]
[1743331051007,0.2524794,83286.0,83285.0,0.18344906]
[1743331051209,0.25253027,83286.0,83285.0,0.18344906]
[1743331051551,0.25553027,83286.0,83285.0,0.18344906]
[1743331051747,0.75553027,83286.0,83285.0,0.20763871]
[1743331051959,0.75953027,83286.0,83285.0,0.20763871]
[1743331053649,0.75553027,83286.0,83285.0,0.20763871]
[1743331053855,0.75253027,83286.0,83285.0,0.20711871]
[1743331054056,0.75853027,83286.0,83285.0,0.39344013]
[1743331060935,0.75853027,83286.0,83285.0,0.22637928]
[1743331061121,0.75853027,83286.0,83285.0,0.36179107]
[1743331061525,0.75853027,83286.0,83285.0,0.37765928]
[1743331062154,0.76968738,83286.0,83285.0,0.37765928]
[1743331062558,0.76968738,83286.0,83285.0,0.22637928]
[1743331062759,0.76968738,83286.0,83285.0,0.93375107]
[1743331062961,0.76968738,83286.0,83285.0,0.94961928]
[1743331064311,0.79199961,83286.0,83285.0,0.94961928]
[1743331065534,0.79199961,83286.0,83285.0,0.94929928]
[1743331065834,0.79199961,83286.0,83285.0,0.76297786]
[1743331067847,0.53985761,83286.0,83285.0,0.83927565]
[1743331068102,0.53985761,83286.0,83285.0,0.77751871]
[1743331068301,0.53985761,83286.0,83285.0,1.19604854]
[1743331068432,0.53985761,83286.0,83285.0,1.27604854]
[1743331068832,0.53985761,83286.0,83285.0,1.12496854]
[1743331069032,0.53985761,83286.0,83285.0,1.27564854]
[1743331069233,0.01454538,83286.0,83285.0,1.27564854]
[1743331069446,0.01454538,83286.0,83285.0,1.39693337]
[1743331070747,0.01154538,83286.0,83285.0,1.39693337]
[1743331071491,0.01154538,83286.0,83285.0,1.27664854]
[1743331071697,0.01154538,83286.0,83285.0,1.46296996]
[1743331075088,0.00072089,83286.0,83285.0,1.46296996]
[1743331075288,0.3,83308.0,83303.0,0.25209]
[1743331075509,0.3,83308.0,83305.0,0.01454085]
[1743331075860,0.0003372,83309.0,83307.0,0.01454085]
[1743331076066,0.3,83308.0,83307.0,0.01454085]
[1743331076427,0.305,83308.0,83307.0,0.01454085]
[1743331076637,0.305,83308.0,83306.0,0.01454085]
[1743331077016,0.0003372,83309.0,83308.0,0.01454085]
[1743331077221,0.3003372,83309.0,83308.0,0.01454085]
[1743331077423,0.3123402,83309.0,83308.0,0.00954085]
[1743331078591,0.240072,83308.0,83307.0,0.59573843]
[1743331079100,0.252075,83308.0,83307.0,0.59573843]
[1743331079615,0.8083372,83309.0,83307.0,0.59573843]
[1743331079782,0.3033372,83309.0,83307.0,0.59573843]
[1743331079944,0.740072,83308.0,83307.0,0.59573843]
[1743331080148,0.757075,83308.0,83307.0,0.59573843]
[1743331080486,0.760075,83308.0,83307.0,0.7966007]
[1743331081515,0.755075,83308.0,83307.0,0.7966007]
[1743331082780,0.503,83308.0,83307.0,1.0486787]
[1743331083003,0.503,83308.0,83307.0,0.7966007]
[1743331083218,0.515003,83308.0,83307.0,0.7966007]
[1743331083885,0.503,83308.0,83307.0,0.7966007]
[1743331084200,0.755075,83308.0,83307.0,0.7966007]
[1743331087714,0.76621523,83308.0,83307.0,0.7966007]
[1743331088130,0.51414023,83308.0,83307.0,0.8086037]
[1743331089167,0.01414023,83308.0,83307.0,0.8086037]
[1743331089935,0.01114023,83308.0,83307.0,0.8086037]
[1743331090118,0.01414023,83308.0,83307.0,1.0486787]
[1743331090743,0.01114023,83308.0,83307.0,1.0486787]
[1743331090953,0.01414023,83308.0,83307.0,1.1963987]
[1743331091155,0.01414023,83308.0,83307.0,1.21216026]
[1743331092081,0.01414023,83308.0,83307.0,1.21232876]
[1743331092371,0.01447723,83308.0,83307.0,1.21232876]
[1743331092876,0.01447723,83308.0,83307.0,1.25675715]
[1743331093310,0.01447723,83308.0,83307.0,0.82453376]
[1743331093488,0.01447723,83308.0,83307.0,0.97193376]
[1743331093782,0.01447723,83308.0,83307.0,0.95993076]
[1743331094383,0.240064,83312.0,83308.0,0.01454085]
[1743331094584,0.24020545,83312.0,83308.0,0.01454085]
[1743331094728,0.24020545,83312.0,83310.0,0.01454085]
[1743331095152,0.24020545,83312.0,83311.0,0.03028303]
[1743331095354,0.25220845,83312.0,83311.0,0.15056786]
[1743331095559,0.25520845,83312.0,83311.0,0.15056786]
[1743331095761,0.75520845,83312.0,83311.0,0.15056786]
[1743331096631,0.75520845,83312.0,83311.0,0.03028303]
[1743331096805,0.75220845,83312.0,83311.0,0.03028303]
[1743331098093,0.75220845,83312.0,83311.0,0.21660445]
[1743331100120,0.77453672,83312.0,83311.0,0.21660445]
[1743331101935,0.77453672,83312.0,83311.0,0.2020636]
[1743331103183,0.77453672,83312.0,83311.0,0.3483836]
[1743331105145,0.77487372,83312.0,83311.0,0.3483836]
[1743331105822,0.77487372,83312.0,83311.0,0.9200236]
[1743331107632,0.78605678,83312.0,83311.0,0.9200236]
[1743331108734,0.53398978,83312.0,83311.0,0.96897223]
[1743331108965,0.53398978,83312.0,83311.0,1.22103923]
[1743331109112,0.51166151,83312.0,83311.0,1.22103923]
[1743331111345,0.51166151,83312.0,83311.0,0.98097523]
[1743331113201,0.51166151,83312.0,83311.0,0.94656745]
[1743331113444,0.51166151,83312.0,83311.0,0.93456445]
[1743331113894,0.51166151,83312.0,83311.0,0.94656745]
[1743331114358,0.01166151,83312.0,83311.0,0.94656745]
[1743331118953,0.00047845,83312.0,83311.0,0.94656745]
[1743331119973,0.00047845,83312.0,83311.0,1.06685228]
[1743331120774,0.00047845,83312.0,83311.0,1.18713711]
[1743331124845,0.00047845,83312.0,83311.0,1.06685228]
[1743331125082,0.00047845,83312.0,83311.0,0.9200236]
[1743331125282,0.00047845,83312.0,83311.0,0.94656745]
[1743331126452,0.03399838,83312.0,83311.0,0.94656745]
[1743331126655,0.03399838,83312.0,83311.0,0.94432745]
[1743331128220,0.03399838,83312.0,83311.0,1.06461228]
[1743331129259,0.01165176,83312.0,83311.0,1.06461228]
[1743331131844,0.01165176,83312.0,83311.0,0.94432745]
[1743331134136,0.00047845,83312.0,83311.0,0.94432745]
[1743331137144,0.01165788,83312.0,83311.0,0.94432745]
[1743331139690,0.01165788,83312.0,83311.0,1.06461228]
[1743331139885,0.01165788,83312.0,83311.0,1.06337228]
[1743331140292,0.00047845,83312.0,83311.0,1.1616134]
[1743331142829,0.011663,83312.0,83311.0,1.1616134]
[1743331143857,0.011663,83312.0,83311.0,1.06337228]
[1743331144068,0.011663,83312.0,83311.0,0.94308745]
[1743331145776,0.03403349,83312.0,83311.0,0.94308745]
[1743331147392,0.011663,83312.0,83311.0,0.94308745]
[1743331152118,0.0340342,83312.0,83311.0,0.94308745]
[1743331152326,0.2860982,83312.0,83311.0,0.78824445]
[1743331152524,0.2860982,83312.0,83311.0,0.9154636]
[1743331153005,0.7860982,83312.0,83311.0,0.9154636]
[1743331156400,0.7860982,83312.0,83311.0,0.7737036]
[1743331156678,0.7860982,83312.0,83311.0,0.9151836]
[1743331156817,0.8623982,83312.0,83311.0,0.9151836]
[1743331157430,0.8623982,83312.0,83311.0,0.9151036]
[1743331158435,1.1623982,83312.0,83311.0,0.7737036]
[1743331158635,1.17123989,83312.0,83311.0,0.7737036]
[1743331158860,1.21733989,83312.0,83311.0,0.7737036]
[1743331159406,1.21733989,83312.0,83311.0,0.58738218]
[1743331159729,1.21733989,83312.0,83311.0,0.56329042]
[1743331163039,1.21733989,83312.0,83311.0,0.0135092]
[1743331163368,0.312003,83311.0,83310.0,0.0001685]
[1743331163528,0.389303,83311.0,83310.0,0.0001685]
[1743331163942,0.42285875,83311.0,83310.0,0.0001685]
[1743331164804,0.92285875,83311.0,83310.0,0.0001685]
[1743331168338,0.95853853,83311.0,83310.0,0.0001685]
[1743331169938,0.92285875,83311.0,83310.0,0.0001685]
[1743331172472,0.91085575,83311.0,83310.0,0.0001685]
[1743331176160,0.91119295,83311.0,83310.0,0.0001685]
[1743331177849,0.88882175,83311.0,83310.0,0.0001685]
[1743331178052,0.91112731,83311.0,83310.0,0.0001685]
[1743331180769,0.91112731,83311.0,83307.0,0.0001685]
[1743331182553,0.03349011,83310.0,83307.0,0.0001685]
[1743331183703,0.3,83308.0,83307.0,0.0001685]
[1743331184296,0.31118455,83308.0,83307.0,0.0001685]
[1743331185126,0.82318755,83308.0,83307.0,0.0001685]
[1743331185325,0.84549311,83308.0,83307.0,0.0001685]
[1743331189656,0.83430856,83308.0,83307.0,0.0001685]
[1743331189811,0.812003,83308.0,83307.0,0.0001685]
[1743331192692,0.83435637,83308.0,83307.0,0.0001685]
[1743331194389,0.82235337,83308.0,83307.0,0.0001685]
[1743331196308,0.8,83308.0,83307.0,0.0001685]
[1743331198215,0.8,83308.0,83307.0,0.01107339]
[1743331201855,0.82234226,83308.0,83307.0,0.01107339]
[1743331203462,0.52234226,83308.0,83307.0,0.40159224]
[1743331203636,0.02234226,83308.0,83307.0,0.61254912]
[1743331204060,0.02234226,83308.0,83307.0,0.73283395]
[1743331214152,0.02234226,83308.0,83307.0,1.30447395]
[1743331220293,0.02234226,83308.0,83307.0,1.44267395]
[1743331222061,0.02234226,83308.0,83307.0,1.44295395]
[1743331222735,0.02234226,83308.0,83307.0,1.44291395]
[1743331226211,0.01047806,83308.0,83307.0,1.44291395]
[1743331229364,0.0784,83346.0,83323.0,0.26657085]
[1743331229577,0.0784,83346.0,83323.0,0.88149771]
[1743331229749,0.00038452,83324.0,83323.0,0.89232507]
[1743331230400,0.00038452,83324.0,83323.0,0.94092507]
[1743331231184,0.00038452,83324.0,83323.0,0.94716779]
[1743331233710,0.0453,83359.0,83342.0,0.239973]
[1743331233711,0.01243132,83359.0,83342.0,0.239973]
[1743331233911,0.01243132,83359.0,83343.0,0.36444362]
[1743331233912,4.713e-05,83345.0,83343.0,0.36444362]
[1743331234116,4.713e-05,83345.0,83343.0,0.38141534]
[1743331234521,0.5,83344.0,83343.0,0.38141534]
[1743331234720,0.5,83344.0,83343.0,0.35501834]
[1743331234923,0.5,83344.0,83343.0,0.20247749]
[1743331235100,0.5,83344.0,83343.0,0.34043749]
[1743331236125,0.5,83344.0,83343.0,0.36440389]
[1743331237639,0.5,83344.0,83343.0,0.37894474]
[1743331242829,0.5222776,83344.0,83343.0,0.37894474]
[1743331247302,0.5226148,83344.0,83343.0,0.37894474]
[1743331249872,0.5226148,83344.0,83343.0,0.36388389]
[1743331252342,0.53375577,83344.0,83343.0,0.36388389]
[1743331252480,0.61225577,83344.0,83343.0,0.36384389]
[1743331253964,0.24992781,83344.0,83343.0,0.36384389]
[1743331255153,0.24992781,83344.0,83343.0,0.36368389]
[1743331259446,0.24992781,83344.0,83343.0,0.36385239]
[1743331265113,0.28570992,83344.0,83343.0,0.36385239]
[1743331272427,0.28570992,83344.0,83343.0,0.20264599]
[1743331272428,0.52765021,83344.0,83343.0,0.20264599]
[1743331272625,0.65105021,83344.0,83343.0,0.20264599]
[1743331272853,0.70919453,83344.0,83343.0,0.20264599]
[1743331273562,0.70919453,83344.0,83343.0,0.16505816]
[1743331273756,0.70819453,83344.0,83343.0,0.16505816]
[1743331274130,0.70819453,83344.0,83343.0,0.01714022]
[1743331274496,0.70819453,83344.0,83343.0,0.0001685]
[1743331275525,0.72019253,83344.0,83343.0,0.0001685]
[1743331279422,0.7583639,83344.0,83343.0,0.0001685]
[1743331280878,0.012001,83324.0,83320.0,0.1366]
[1743331281058,0.012001,83324.0,83310.0,0.57148]
[1743331281059,0.540038,83320.0,83319.0,0.0241533]
[1743331281521,0.552039,83320.0,83310.0,0.57148]
[1743331281734,0.012002,83314.0,83310.0,0.57148]
[1743331281948,0.552057,83314.0,83310.0,0.57148]
[1743331282162,0.627357,83314.0,83310.0,0.57148]
[1743331282368,0.627357,83314.0,83307.0,0.0001685]
[1743331282791,0.675457,83314.0,83307.0,0.0001685]
[1743331282999,0.73360132,83314.0,83313.0,0.00021572]
[1743331283427,0.74474229,83314.0,83313.0,0.00021572]
[1743331284048,0.74474229,83314.0,83313.0,0.00221572]
[1743331284186,0.95991229,83314.0,83313.0,0.00221572]
[1743331284387,0.95991229,83314.0,83313.0,0.00121572]
[1743331287121,0.96091229,83314.0,83313.0,0.00121572]
[1743331287498,0.96091229,83314.0,83313.0,0.00021572]
[1743331289025,0.92513117,83314.0,83313.0,0.00021572]
[1743331289317,0.80173117,83314.0,83313.0,0.00021572]
[1743331293064,0.837213,83314.0,83313.0,0.00021572]
[1743331305937,0.838213,83314.0,83313.0,0.00021572]
[1743331306859,0.838213,83314.0,83307.0,0.0001685]
[1743331306860,0.3,83310.0,83307.0,0.0001685]
[1743331308256,0.3,83308.0,83307.0,0.0001685]
[1743331308860,0.3,83308.0,83307.0,0.0011685]
[1743331309435,0.3,83308.0,83307.0,0.0001685]
[1743331309616,0.068986,83309.0,83307.0,0.0001685]
[1743331309828,0.27301503,83308.0,83307.0,0.0011685]
[1743331310224,0.284156,83308.0,83307.0,0.0011685]
[1743331310428,0.284156,83308.0,83307.0,0.0001685]
[1743331310750,0.284156,83308.0,83307.0,0.0011685]
[1743331311405,0.284156,83308.0,83307.0,0.01831731]
[1743331312014,0.584156,83308.0,83307.0,0.01731731]
[1743331312506,0.584156,83308.0,83307.0,0.0011685]
[1743331315325,0.584156,83308.0,83307.0,0.01831731]
[1743331321425,0.54867417,83308.0,83307.0,0.01831731]
[1743331322047,0.54867417,83308.0,83307.0,0.01731731]
[1743331322410,0.54867417,83308.0,83307.0,0.01831731]